bitfinex/quotes_SOLUSD_20241222
["timestamp","ask_amount","ask_price","bid_price","bid_amount"]
[1734882351877,1.5743,181.84,181.78,18.35399083]
[1734882352181,8.5477857,181.87,181.79,18.35399083]
[1734882352388,8.5477857,181.87,181.8,18.35399083]
[1734882352568,8.5477857,181.87,181.71,18.35399083]
[1734882352569,8.5477857,181.87,181.81,18.35399083]
[1734882352757,8.5477857,181.87,181.83,18.35399083]
[1734882352955,1.5743,181.89,181.83,18.35399083]
[1734882353371,12.68479211,181.9,181.83,18.35399083]
[1734882353776,8.5477857,181.9,181.84,18.35399083]
[1734882353975,4.80090311,181.92,181.84,18.35399083]
[1734882354170,0.6638967,181.92,181.83,18.35399083]
[1734882354376,0.6638967,181.92,181.82,18.35399083]
[1734882354797,0.12549,181.91,181.83,18.35399083]
[1734882354962,0.6638967,181.92,181.84,18.35399083]
[1734882355170,0.6638967,181.92,181.86,18.35399083]
[1734882355604,0.6638967,181.92,181.8,32.10529083]
[1734882355605,0.6638967,181.92,181.88,18.35399083]
[1734882355770,0.6638967,181.92,181.89,19.17832889]
[1734882357068,0.6638967,181.92,181.9,18.35399083]
[1734882357269,0.6638967,181.92,181.9,19.17823455]
[1734882357471,0.6638967,181.92,181.91,18.35399083]
[1734882357667,0.6638967,181.92,181.91,42.13087483]
[1734882358662,0.6638967,181.92,181.91,18.35399083]
[1734882358881,0.6638967,181.92,181.91,42.13087483]
[1734882361498,0.6638967,181.92,181.91,18.35399083]
[1734882361885,0.6638967,181.92,181.9,18.35399083]
[1734882362096,0.6638967,181.92,181.87,18.35399083]
[1734882362393,0.12549,181.91,181.83,18.35399083]
[1734882362969,0.12549,181.91,181.82,18.35399083]
[1734882363499,0.6638967,181.92,181.85,18.35399083]
[1734882363664,0.6638967,181.92,181.88,18.35399083]
[1734882363864,0.6638967,181.92,181.89,18.35399083]
[1734882364070,0.6638967,181.92,181.9,18.35399083]
[1734882364884,0.6638967,181.92,181.91,18.35399083]
[1734882365093,0.6638967,181.92,181.89,18.35399083]
[1734882365605,0.6638967,181.92,181.88,18.35399083]
[1734882365770,0.6638967,181.92,181.87,18.35399083]
[1734882366597,0.6638967,181.92,181.88,18.35399083]
[1734882367569,0.6638967,181.92,181.89,18.35399083]
[1734882367803,0.6638967,181.92,181.91,18.35399083]
[1734882368096,0.6638967,181.92,181.9,19.1782968]
[1734882368701,0.6638967,181.92,181.9,0.82430597]
[1734882368904,0.6638967,181.92,181.9,19.1782968]
[1734882371478,0.6638967,181.92,181.91,18.35399083]
[1734882373204,9.67e-05,181.92,181.91,26.42698083]
[1734882373410,1.5516,182.07,181.92,23.776884]
[1734882373595,1.5516,182.07,181.98,18.35399083]
[1734882373799,1.5516,182.07,182.0,18.35399083]
[1734882374508,2.18703748,182.09,182.02,18.35399083]
[1734882374711,0.12549,182.09,182.02,18.35399083]
[1734882374908,0.12549,182.09,182.03,18.35399083]
[1734882375124,0.6638967,182.1,182.01,0.82373275]
[1734882375125,0.6638967,182.1,182.04,18.35399083]
[1734882375410,0.6638967,182.1,182.07,18.35399083]
[1734882375608,0.6638967,182.1,182.08,18.35399083]
[1734882377511,0.6638967,182.1,182.09,18.35399083]
[1734882378223,0.6638967,182.1,182.07,29.67620375]
[1734882378418,0.6638967,182.1,182.08,29.67620375]
[1734882379016,0.6638967,182.1,182.07,29.67620375]
[1734882379509,0.6638967,182.1,182.06,29.67620375]
[1734882380715,0.6638967,182.1,182.07,29.67620375]
[1734882380891,0.6638967,182.1,182.08,29.67620375]
[1734882381411,0.6638967,182.1,182.06,29.67620375]
[1734882381611,0.6638967,182.1,182.07,29.67620375]
[1734882382107,0.6638967,182.1,182.06,29.67620375]
[1734882382311,0.6638967,182.1,182.05,29.67620375]
[1734882382517,0.6638967,182.1,182.06,29.67620375]
[1734882383390,0.6638967,182.1,182.09,29.67620375]
[1734882385083,0.12549,182.09,182.01,1.5748]
[1734882385292,0.12549,182.09,182.02,29.67620375]
[1734882386310,0.12549,182.09,182.0,29.67620375]
[1734882386512,20.0,182.06,181.97,29.67620375]
[1734882386721,0.12549,182.05,181.96,29.67620375]
[1734882387020,0.12549,182.05,181.92,2.47431992]
[1734882387021,0.12549,182.03,181.92,29.67620375]
[1734882387212,0.12549,181.99,181.91,29.67620375]
[1734882387412,0.12549,181.95,181.89,29.67620375]
[1734882387614,0.12549,181.95,181.87,29.67620375]
[1734882387786,0.12549,181.95,181.9,29.67620375]
[1734882387987,0.12549,181.95,181.89,29.67620375]
[1734882388736,0.12549,181.95,181.87,29.67620375]
[1734882388896,0.12549,181.95,181.88,29.67620375]
[1734882389229,0.12549,181.95,181.9,29.67620375]
[1734882389517,20.0,181.96,181.9,29.67620375]
[1734882389728,20.0,181.96,181.91,29.67620375]
[1734882389905,20.12549,182.0,181.93,29.67620375]
[1734882390104,20.12549,182.0,181.92,29.67620375]
[1734882390318,20.12549,182.0,181.94,29.67620375]
[1734882390839,20.12549,182.0,181.93,29.67620375]
[1734882391045,20.12549,182.0,181.94,29.67620375]
[1734882391249,1.6556,182.04,181.97,29.67620375]
[1734882391446,1.6556,182.04,181.91,1.6503]
[1734882391447,1.6556,182.04,181.98,29.67620375]
[1734882391639,0.12549,182.03,181.96,29.67620375]
[1734882391940,1.6556,182.04,181.96,29.67620375]
[1734882392443,0.12549,182.03,181.94,29.67620375]
[1734882393013,23.902374,182.03,181.92,29.67620375]
[1734882393325,23.902374,182.03,181.89,29.67620375]
[1734882393508,0.12549,181.97,181.86,7.7387]
[1734882393714,0.12549,181.94,181.87,29.67620375]
[1734882393913,0.12549,181.94,181.88,29.67620375]
[1734882394141,0.12549,181.94,181.87,29.67620375]
[1734882394341,0.12549,181.94,181.83,0.82445646]
[1734882394522,0.12549,181.94,181.84,29.67620375]
[1734882394858,0.12549,181.9,181.82,29.67620375]
[1734882395335,0.12549,181.88,181.81,29.67620375]
[1734882395720,0.12549,181.88,181.82,29.67620375]
[1734882395920,0.12549,181.88,181.83,29.67620375]
[1734882396636,0.12549,181.88,181.82,29.67620375]
[1734882396847,0.12549,181.88,181.8,29.67620375]
[1734882397054,0.12549,181.84,181.78,29.67620375]
[1734882398164,0.12549,181.84,181.77,29.67620375]
[1734882398454,0.12549,181.84,181.76,29.67620375]
[1734882399218,20.0,181.81,181.74,30.50095315]
[1734882399421,20.0,181.85,181.71,1.6503]
[1734882399422,23.776884,181.84,181.72,29.67620375]
[1734882399611,20.0,181.81,181.72,29.67620375]
[1734882400232,25.847,181.81,181.7,29.67620375]
[1734882400661,0.12549,181.8,181.7,29.67620375]
[1734882400950,0.12549,181.8,181.72,29.67620375]
[1734882401117,0.12549,181.8,181.74,29.67620375]
[1734882401321,0.12549,181.8,181.73,29.67620375]
[1734882401818,0.12549,181.8,181.74,29.67620375]
[1734882402023,0.12549,181.8,181.7,23.776884]
[1734882402024,0.12549,181.8,181.75,29.67620375]
[1734882402334,0.12549,181.83,181.75,29.67620375]
[1734882402755,0.12549,181.81,181.76,29.67620375]
[1734882402922,0.12549,181.81,181.75,29.67620375]
[1734882403264,20.0,181.82,181.76,29.67620375]
[1734882403428,5.847,181.85,181.77,29.67620375]
[1734882403752,0.12549,181.84,181.77,29.67620375]
[1734882403936,5.847,181.85,181.78,29.67620375]
[1734882404144,2.20808651,181.87,181.79,29.67620375]
[1734882404326,1.5395,181.89,181.8,29.67620375]
[1734882404727,0.12549,181.88,181.8,29.67620375]
[1734882404967,1.5395,181.89,181.8,29.67620375]
[1734882405128,1.5395,181.89,181.81,29.67620375]
[1734882405335,1.5395,181.89,181.82,29.67620375]
[1734882405538,0.12549,181.88,181.82,29.67620375]
[1734882406149,1.5395,181.89,181.82,29.67620375]
[1734882406768,0.12549,181.88,181.8,29.67620375]
[1734882406938,0.12549,181.86,181.79,29.67620375]
[1734882408371,0.12549,181.86,181.78,29.67620375]
[1734882408871,0.12549,181.86,181.77,29.67620375]
[1734882409051,0.12549,181.86,181.76,29.67620375]
[1734882409377,0.12549,181.86,181.75,29.67620375]
[1734882409665,0.12549,181.86,181.81,29.67620375]
[1734882410052,0.12549,181.86,181.8,29.67620375]
[1734882410264,0.12549,181.86,181.79,29.67620375]
[1734882411069,0.12549,181.86,181.8,29.67620375]
[1734882411369,0.12549,181.86,181.76,0.82498787]
[1734882411370,0.12549,181.86,181.81,29.67620375]
[1734882411571,20.0,181.87,181.83,29.67620375]
[1734882411769,1.5223,181.94,181.83,29.67620375]
[1734882411955,7.3693,181.94,181.85,29.67620375]
[1734882412578,0.12549,181.93,181.85,29.67620375]
[1734882412862,7.3693,181.94,181.85,29.67620375]
[1734882413063,7.3693,181.94,181.83,29.67620375]
[1734882413361,0.12549,181.89,181.81,29.67620375]
[1734882413749,0.12549,181.89,181.8,29.67620375]
[1734882413948,0.12549,181.89,181.79,29.67620375]
[1734882415071,0.12549,181.89,181.8,29.67620375]
[1734882415565,0.12549,181.89,181.82,29.67620375]
[1734882416169,0.12549,181.89,181.81,29.67620375]
[1734882417972,0.12549,181.89,181.78,23.776884]
[1734882417973,0.12549,181.87,181.77,0.82483481]
[1734882418162,0.12549,181.76,181.66,31.29130375]
[1734882418475,20.0,181.73,181.64,36.27420375]
[1734882418686,20.0,181.73,181.66,29.67620375]
[1734882418845,1.5223,181.77,181.67,0.82531944]
[1734882419356,20.0,181.81,181.68,29.67620375]
[1734882419572,20.0,181.81,181.69,0.82513444]
[1734882420479,0.12549,181.8,181.69,30.50133819]
[1734882420651,0.12549,181.8,181.69,0.82513444]
[1734882420850,23.902374,181.8,181.66,0.82525389]
[1734882421149,0.12549,181.72,181.62,1.6151]
[1734882422372,0.12549,181.72,181.62,2.44061641]
[1734882422877,0.12549,181.72,181.62,0.82551641]
[1734882423267,5.847,181.74,181.62,0.82551641]
[1734882423268,0.12549,181.7,181.62,0.82551641]
[1734882423474,20.0,181.71,181.62,30.50172016]
[1734882423650,20.0,181.71,181.63,29.67620375]
[1734882424184,5.847,181.74,181.65,29.67620375]
[1734882424399,20.0,181.76,181.66,30.50149567]
[1734882424682,0.12549,181.75,181.66,30.50149567]
[1734882424984,20.0,181.76,181.66,0.82529192]
[1734882425965,0.12549,181.75,181.65,29.67620375]
[1734882426374,0.12549,181.75,181.65,30.50158302]
[1734882427360,0.12549,181.75,181.63,43.43980375]
[1734882427556,0.12549,181.75,181.61,30.50158833]
[1734882427557,0.12549,181.71,181.61,30.50158833]
[1734882427756,0.12549,181.71,181.58,31.29660375]
[1734882427993,0.12549,181.66,181.58,0.82569657]
[1734882428155,0.12549,181.66,181.56,0.82572343]
[1734882428376,0.12549,181.66,181.54,31.34100375]
[1734882428605,0.12549,181.62,181.54,31.34100375]
[1734882428986,0.12549,181.62,181.54,29.67620375]
[1734882429176,0.12549,181.62,181.53,43.44780375]
[1734882429506,0.12549,181.62,181.53,0.82588217]
[1734882430208,20.0,181.67,181.54,43.44720375]
[1734882430513,0.12549,181.66,181.54,13.771]
[1734882431706,0.12549,181.66,181.54,43.44720375]
[1734882432200,0.12549,181.66,181.55,30.50201021]
[1734882432379,0.12549,181.66,181.55,29.67620375]
[1734882432578,0.12549,181.66,181.54,43.44720375]
[1734882432781,0.12549,181.66,181.55,29.67620375]
[1734882433807,0.12549,181.66,181.54,13.771]
[1734882434013,23.902374,181.66,181.53,29.67620375]
[1734882434181,0.12549,181.62,181.51,49.92140375]
[1734882434384,23.902374,181.62,181.5,29.67620375]
[1734882434583,0.12549,181.58,181.49,30.50222782]
[1734882434887,20.0,181.57,181.49,0.82602407]
[1734882435280,0.12549,181.56,181.47,30.34010045]
[1734882435494,0.12549,181.56,181.47,0.6638967]
[1734882435698,23.902374,181.56,181.47,0.6638967]
[1734882435909,0.12549,181.56,181.47,0.6638967]
[1734882437713,0.12549,181.52,181.47,0.6638967]
[1734882439105,20.0,181.57,181.47,0.6638967]
[1734882439303,0.12549,181.56,181.47,0.6638967]
[1734882440091,2.26254614,181.58,181.49,29.67620375]
[1734882440290,0.12549,181.57,181.48,29.67620375]
[1734882441016,8.03214674,181.6,181.49,29.67620375]
[1734882441218,23.776884,181.59,181.49,29.67620375]
[1734882441402,0.12549,181.55,181.48,29.67620375]
[1734882442817,20.0,181.57,181.5,29.67620375]
[1734882443593,0.12549,181.56,181.49,29.67620375]
[1734882443913,5.847,181.65,181.53,29.67620375]
[1734882444114,5.847,181.65,181.55,29.67620375]
[1734882445206,0.12549,181.61,181.53,29.67620375]
[1734882445608,0.12549,181.61,181.51,29.67620375]
[1734882445800,23.902374,181.61,181.48,29.67620375]
[1734882445999,0.12549,181.57,181.47,30.34010045]
[1734882449698,0.12549,181.57,181.4,34.1177]
[1734882449699,0.12549,181.42,181.33,29.67620375]
[1734882450127,0.12549,181.38,181.29,0.6638967]
[1734882450332,0.12549,181.38,181.29,30.34010045]
[1734882450845,5.847,181.43,181.33,29.67620375]
[1734882451045,5.847,181.43,181.37,29.67620375]
[1734882451218,20.0,181.43,181.38,29.67620375]
[1734882451622,20.0,181.46,181.39,29.67620375]
[1734882451839,20.0,181.45,181.39,29.67620375]
[1734882452046,5.847,181.48,181.4,29.67620375]
[1734882452354,25.847,181.53,181.43,29.67620375]
[1734882452651,0.12549,181.52,181.43,29.67620375]
[1734882453333,23.902374,181.52,181.43,29.67620375]
[1734882453645,25.847,181.53,181.46,29.67620375]
[1734882454050,20.0,181.53,181.47,29.67620375]
[1734882454347,1.0023,181.55,181.48,29.67620375]
[1734882454515,5.847,181.58,181.49,29.67620375]
[1734882454718,5.847,181.58,181.5,29.67620375]
[1734882455127,1.0023,181.61,181.53,29.67620375]
[1734882455516,0.12549,181.6,181.53,29.67620375]
[1734882455716,0.12549,181.6,181.52,29.67620375]
[1734882455929,1.0023,181.61,181.5,29.67620375]
[1734882456220,20.0,181.6,181.47,29.67620375]
[1734882456420,20.0,181.6,181.45,15.3201]
[1734882456421,0.12549,181.59,181.45,29.67620375]
[1734882457255,0.12549,181.55,181.45,29.67620375]
[1734882458054,0.12549,181.55,181.46,29.67620375]
[1734882458225,0.12549,181.55,181.48,29.67620375]
[1734882458428,0.12549,181.55,181.47,29.67620375]
[1734882458627,0.12549,181.55,181.46,29.67620375]
[1734882459928,0.12549,181.55,181.43,0.82632068]
[1734882459929,0.12549,181.51,181.43,29.67620375]
[1734882460254,0.12549,181.51,181.42,29.67620375]
[1734882461754,0.12549,181.51,181.43,29.67620375]
[1734882462093,0.12549,181.51,181.44,29.67620375]
[1734882462651,0.12549,181.51,181.43,29.67620375]
[1734882462951,0.12549,181.51,181.44,29.67620375]
[1734882464024,0.12549,181.51,181.43,29.67620375]
[1734882464339,0.12549,181.51,181.41,29.67620375]
[1734882464525,0.12549,181.49,181.42,29.67620375]
[1734882464846,20.0,181.5,181.39,29.67620375]
[1734882465023,20.0,181.5,181.4,29.67620375]
[1734882465223,0.12549,181.49,181.39,29.67620375]
[1734882466759,0.12549,181.49,181.4,29.67620375]
[1734882467349,0.12549,181.49,181.41,29.67620375]
[1734882467868,0.12549,181.49,181.4,29.67620375]
[1734882468512,0.12549,181.49,181.36,0.82659019]
[1734882468513,22.17810501,181.5,181.42,29.67620375]
[1734882468647,20.0,181.5,181.42,29.67620375]
[1734882468844,0.12549,181.49,181.42,29.67620375]
[1734882469048,20.0,181.5,181.44,29.67620375]
[1734882469443,0.12549,181.49,181.43,29.67620375]
[1734882469642,0.12549,181.49,181.42,29.67620375]
[1734882470679,0.12549,181.49,181.43,29.67620375]
[1734882471169,0.12549,181.49,181.42,29.67620375]
[1734882471467,0.12549,181.49,181.4,29.67620375]
[1734882471676,0.12549,181.49,181.39,29.67620375]
[1734882471973,0.12549,181.49,181.4,29.67620375]
[1734882472472,0.12549,181.49,181.41,29.67620375]
[1734882472677,0.12549,181.49,181.37,14.61007077]
[1734882472973,0.12549,181.45,181.37,29.67620375]
[1734882473148,0.12549,181.45,181.36,29.67620375]
[1734882473352,0.12549,181.45,181.35,29.67620375]
[1734882473556,0.12549,181.41,181.35,29.67620375]
[1734882475076,1.0023,181.45,181.38,29.67620375]
[1734882475580,0.12549,181.44,181.37,29.67620375]
[1734882478092,0.12549,181.44,181.33,13.7864]
[1734882478093,20.0,181.4,181.36,29.67620375]
[1734882478260,20.0,181.4,181.35,29.67620375]
[1734882478465,20.0,181.4,181.34,29.67620375]
[1734882478669,0.12549,181.39,181.34,29.67620375]
[1734882478878,0.12549,181.39,181.33,29.67620375]
[1734882479163,20.0,181.4,181.34,29.67620375]
[1734882479695,0.12549,181.39,181.33,29.67620375]
[1734882480395,20.0,181.4,181.35,29.67620375]
[1734882480693,5.847,181.43,181.36,29.67620375]
[1734882480901,1.0023,181.45,181.37,29.67620375]
[1734882480902,0.12549,181.44,181.37,29.67620375]
[1734882481201,1.0023,181.45,181.37,29.67620375]
[1734882481395,1.0023,181.45,181.36,29.67620375]
[1734882481711,0.12549,181.44,181.36,29.67620375]
[1734882482011,20.0,181.44,181.38,29.67620375]
[1734882482172,20.0,181.44,181.36,29.67620375]
[1734882482675,0.12549,181.43,181.37,29.67620375]
[1734882482878,0.12549,181.43,181.36,29.67620375]
[1734882483305,0.12549,181.43,181.37,29.67620375]
[1734882483686,20.0,181.44,181.38,29.67620375]
[1734882483871,20.0,181.44,181.4,29.67620375]
[1734882484069,5.847,181.47,181.4,29.67620375]
[1734882484292,1.0023,181.5,181.42,29.67620375]
[1734882484508,0.12549,181.49,181.43,29.67620375]
[1734882484806,0.12549,181.49,181.38,0.82655901]
[1734882485011,1.0023,181.5,181.39,29.67620375]
[1734882485172,1.0023,181.5,181.38,29.67620375]
[1734882485371,0.12549,181.49,181.36,29.67620375]
[1734882485573,20.0,181.48,181.36,29.67620375]
[1734882485790,0.12549,181.47,181.39,29.67620375]
[1734882485970,0.12549,181.47,181.41,29.67620375]
[1734882486183,1.0023,181.5,181.41,29.67620375]
[1734882486419,23.776884,181.49,181.41,29.67620375]
[1734882486619,0.12549,181.48,181.39,29.67620375]
[1734882487113,0.12549,181.45,181.37,29.67620375]
[1734882487691,0.12549,181.41,181.34,29.67620375]
[1734882489326,5.97249,181.41,181.32,29.67620375]
[1734882489529,0.12549,181.37,181.31,29.67620375]
[1734882489732,0.12549,181.37,181.29,0.6638967]
[1734882489733,20.0,181.34,181.29,0.6638967]
[1734882489893,0.12549,181.37,181.29,0.6638967]
[1734882490293,0.12549,181.33,181.29,0.6638967]
[1734882491191,20.0,181.38,181.3,29.67620375]
[1734882491608,0.12549,181.37,181.29,0.6638967]
[1734882491825,0.12549,181.37,181.3,29.67620375]
[1734882492419,23.902374,181.37,181.29,0.6638967]
[1734882492618,0.12549,181.33,181.29,0.6638967]
[1734882493319,20.12549,181.3,181.29,0.6638967]
[1734882493721,0.12549,181.29,181.24,29.67620375]
[1734882495201,0.12549,181.29,181.22,29.67620375]
[1734882495430,0.12549,181.29,181.18,19.9879]
[1734882495604,0.12549,181.29,181.22,29.67620375]
[1734882495804,20.12549,181.29,181.22,29.67620375]
[1734882496405,20.12549,181.29,181.21,29.67620375]
[1734882496610,0.12549,181.29,181.21,29.67620375]
[1734882497115,0.12549,181.29,181.23,29.67620375]
[1734882497824,0.12549,181.29,181.24,29.67620375]
[1734882499140,0.12549,181.29,181.23,29.67620375]
[1734882499912,0.12549,181.29,181.27,29.67620375]
[1734882500128,20.12549,181.29,181.28,29.67620375]
[1734882500618,20.12549,181.29,181.28,2.82319535]
[1734882501037,0.12549,181.29,181.27,29.67620375]
[1734882501218,0.12549,181.29,181.25,29.67620375]
[1734882501626,0.12549,181.29,181.24,29.67620375]
[1734882502155,0.12549,181.29,181.25,29.67620375]
[1734882502324,0.12549,181.29,181.17,13.799]
[1734882502516,0.12549,181.29,181.22,29.67620375]
[1734882503030,0.12549,181.29,181.24,29.67620375]
[1734882503336,0.12549,181.29,181.17,29.67620375]
[1734882503337,0.12549,181.29,181.26,29.67620375]
[1734882503955,0.12549,181.29,181.25,29.67620375]
[1734882505155,0.12549,181.29,181.24,29.67620375]
[1734882505351,0.12549,181.29,181.23,29.67620375]
[1734882505868,0.12549,181.29,181.24,29.67620375]
[1734882506051,0.12549,181.29,181.26,29.67620375]
[1734882506447,1.0023,181.32,181.28,29.67620375]
[1734882506847,0.12549,181.31,181.28,29.67620375]
[1734882507374,1.0023,181.32,181.3,29.67620375]
[1734882507558,14.3947857,181.33,181.31,29.67620375]
[1734882507754,5.847,181.33,181.31,29.67620375]
[1734882507966,0.12549,181.32,181.31,29.67620375]
[1734882508137,5.847,181.33,181.31,29.67620375]
[1734882508467,0.12549,181.32,181.31,29.67620375]
[1734882508666,0.12549,181.32,181.3,29.67620375]
[1734882509075,5.847,181.33,181.31,29.67620375]
[1734882509240,1.0023,181.36,181.32,29.67620375]
[1734882509440,1.0023,181.36,181.26,29.67620375]
[1734882509441,1.0023,181.36,181.33,29.67620375]
[1734882509675,0.12549,181.35,181.31,29.67620375]
[1734882510052,0.12549,181.35,181.3,29.67620375]
[1734882510368,0.12549,181.33,181.3,29.67620375]
[1734882511173,20.12549,181.33,181.3,29.67620375]
[1734882511373,0.12549,181.3,181.28,29.67620375]
[1734882512175,0.12549,181.33,181.28,29.67620375]
[1734882512380,0.12549,181.33,181.3,29.67620375]
[1734882513875,0.12549,181.33,181.32,29.67620375]
[1734882514975,0.12549,181.33,181.28,29.67620375]
[1734882515771,0.12549,181.33,181.27,29.67620375]
[1734882515964,0.12549,181.33,181.26,29.67620375]
[1734882516166,0.12549,181.33,181.25,18.43244461]
[1734882516357,0.12549,181.33,181.21,23.776884]
[1734882516358,0.12549,181.33,181.26,18.43244461]
[1734882516541,0.12549,181.33,181.27,18.43244461]
[1734882517476,0.12549,181.33,181.26,18.43244461]
[1734882517648,20.0,181.34,181.19,0.82752259]
[1734882517649,0.12549,181.28,181.19,0.82752259]
[1734882517848,20.12549,181.24,181.14,18.43244461]
[1734882518252,20.12549,181.24,181.13,29.98543713]
[1734882520572,0.12549,181.19,181.12,29.98543713]
[1734882521290,0.12549,181.19,181.13,29.98543713]
[1734882521451,20.0,181.24,181.14,29.98543713]
[1734882521849,20.0,181.24,181.16,29.98543713]
[1734882522069,8.5477857,181.23,181.16,29.98543713]
[1734882522253,20.0,181.2,181.16,29.98543713]
[1734882522582,0.12549,181.19,181.15,29.98543713]
[1734882523180,0.12549,181.21,181.15,29.98543713]
[1734882523474,0.12549,181.21,181.16,29.98543713]
[1734882523662,0.12549,181.21,181.18,29.98543713]
[1734882523866,8.5477857,181.25,181.18,29.98543713]
[1734882524376,8.5477857,181.25,181.19,29.98543713]
[1734882524677,26.20395268,181.27,181.19,29.98543713]
[1734882524678,17.56735644,181.27,181.19,29.98543713]
[1734882524862,0.12549,181.26,181.19,29.98543713]
[1734882525480,0.12549,181.26,181.18,29.98543713]
[1734882525973,20.0,181.24,181.19,29.98543713]
[1734882526166,20.0,181.24,181.21,29.98543713]
[1734882526373,0.12549,181.26,181.22,29.98543713]
[1734882526559,0.12549,181.26,181.18,23.776884]
[1734882526560,8.5477857,181.29,181.23,29.98543713]
[1734882526876,8.5477857,181.29,181.24,29.98543713]
[1734882527179,0.12549,181.28,181.22,29.98543713]
[1734882527380,5.29872513,181.31,181.22,29.98543713]
[1734882527754,0.12549,181.3,181.22,29.98543713]
[1734882528161,0.12549,181.3,181.23,29.98543713]
[1734882529084,0.12549,181.3,181.22,29.98543713]
[1734882529581,0.12549,181.3,181.23,29.98543713]
[1734882530276,0.12549,181.3,181.22,29.98543713]
[1734882530456,0.12549,181.3,181.2,23.776884]
[1734882530663,0.12549,181.3,181.23,29.98543713]
[1734882531382,0.12549,181.3,181.24,29.98543713]
[1734882531577,8.5477857,181.33,181.28,29.98543713]
[1734882531777,0.12549,181.32,181.28,29.98543713]
[1734882531960,8.5477857,181.33,181.26,29.98543713]
[1734882532375,1.0023,181.36,181.26,29.98543713]
[1734882532579,0.12549,181.35,181.27,29.98543713]
[1734882533064,1.0023,181.36,181.27,29.98543713]
[1734882533559,1.0023,181.36,181.22,6.087]
[1734882533560,0.12549,181.35,181.22,6.087]
[1734882533780,0.12549,181.35,181.22,36.07243713]
[1734882533972,0.12549,181.35,181.23,29.98543713]
[1734882534185,20.0,181.34,181.24,29.98543713]
[1734882534479,20.12549,181.33,181.25,29.98543713]
[1734882534685,20.0,181.33,181.27,29.98543713]
[1734882535088,8.5477857,181.34,181.26,29.98543713]
[1734882535298,1.0023,181.36,181.26,29.98543713]
[1734882535475,0.12549,181.35,181.26,29.98543713]
[1734882536792,0.12549,181.33,181.26,29.98543713]
[1734882537781,20.12549,181.33,181.26,29.98543713]
[1734882538683,20.12549,181.33,181.27,29.98543713]
[1734882538899,20.12549,181.33,181.25,29.98543713]
[1734882539186,0.12549,181.31,181.21,29.98543713]
[1734882539385,20.0,181.33,181.21,29.98543713]
[1734882539596,28.5477857,181.33,181.21,29.98543713]
[1734882539769,20.0,181.31,181.21,29.98543713]
[1734882540086,20.12549,181.3,181.22,29.98543713]
[1734882540288,8.5477857,181.29,181.23,29.98543713]
[1734882540490,8.5477857,181.29,181.22,29.98543713]
[1734882540788,8.5477857,181.29,181.23,29.98543713]
[1734882541389,20.12549,181.3,181.23,29.98543713]
[1734882541708,20.12549,181.3,181.2,29.98543713]
[1734882542217,20.12549,181.3,181.22,29.98543713]
[1734882542364,8.5477857,181.32,181.25,29.98543713]
[1734882542864,8.5477857,181.31,181.25,29.98543713]
[1734882543064,0.12549,181.3,181.23,29.98543713]
[1734882543390,0.12549,181.3,181.2,29.98543713]
[1734882543391,20.12549,181.3,181.2,29.98543713]
[1734882543561,20.12549,181.3,181.11,1.49155691]
[1734882543763,0.12549,181.25,181.15,29.98543713]
[1734882543971,29.623884,181.29,181.12,7.9298]
[1734882543972,0.12549,181.23,181.14,29.98543713]
[1734882544173,0.12549,181.23,181.14,18.45142796]
[1734882544767,8.6732757,181.23,181.14,18.45142796]
[1734882544964,8.6732757,181.23,181.13,18.45142796]
[1734882545271,0.12549,181.19,181.12,18.45142796]
[1734882546272,0.12549,181.19,181.12,29.98925435]
[1734882546472,8.5477857,181.21,181.14,29.98925435]
[1734882547469,0.12549,181.22,181.14,29.98925435]
[1734882547969,0.12549,181.22,181.16,29.98925435]
[1734882549011,0.12549,181.23,181.16,29.98925435]
[1734882549190,0.12549,181.23,181.15,29.98925435]
[1734882549389,0.12549,181.23,181.14,23.776884]
[1734882549569,0.12549,181.2,181.12,23.776884]
[1734882549764,20.12549,181.2,181.12,53.76613835]
[1734882550987,20.12549,181.2,181.14,29.98925435]
[1734882551185,8.5477857,181.22,181.17,23.776884]
[1734882551393,8.5477857,181.22,181.16,29.98925435]
[1734882551773,0.12549,181.25,181.16,29.98925435]
[1734882552090,20.0,181.23,181.16,29.98925435]
[1734882552278,20.0,181.23,181.15,23.776884]
[1734882552279,20.0,181.23,181.18,29.98925435]
[1734882552596,8.5477857,181.26,181.18,29.98925435]